[Event "*** Titled Tuesday 3|2 Blitz"]
[Site "Chess.com"]
[Date "2017.03.07"]
[Round "5"]
[White "Izoria123"]
[Black "GMOratovsky"]
[Result "1-0"]
[WhiteElo "2555"]
[BlackElo "2391"]
[TimeControl "180+2"]
[EndTime "14:05:03 PST"]
[Termination "Izoria123 won by resignation"]

1. Nf3 {[%clk 0:03:02]} 1... d6 {[%clk 0:02:58.2]} 2. d4 {[%clk 0:03:02.2]} 2...
g6 {[%clk 0:02:56.6]} 3. e4 {[%clk 0:03:01.6]} 3... Bg7 {[%clk 0:02:57.6]} 4.
Bc4 {[%clk 0:03:02.5]} 4... Nf6 {[%clk 0:02:58.2]} 5. Qe2 {[%clk 0:03:03.4]}
5... O-O {[%clk 0:02:59.2]} 6. O-O {[%clk 0:03:03.9]} 6... c6 {[%clk 0:02:55.6]}
7. Bb3 {[%clk 0:03:04]} 7... a5 {[%clk 0:02:51.9]} 8. a4 {[%clk 0:03:03.3]} 8...
Bg4 {[%clk 0:02:42.3]} 9. Nbd2 {[%clk 0:03:01.4]} 9... e5 {[%clk 0:02:40.2]} 10.
dxe5 {[%clk 0:03:01.6]} 10... dxe5 {[%clk 0:02:42.1]} 11. h3 {[%clk 0:03:02.6]}
11... Bxf3 {[%clk 0:02:42.9]} 12. Nxf3 {[%clk 0:03:04.5]} 12... Qe7 {[%clk
0:02:40.9]} 13. c3 {[%clk 0:03:04.6]} 13... Rd8 {[%clk 0:02:39.2]} 14. Ng5
{[%clk 0:03:02.2]} 14... Na6 {[%clk 0:02:20.9]} 15. Nxf7 {[%clk 0:02:58.1]}
15... Nc5 {[%clk 0:02:22.2]} 16. Ba2 {[%clk 0:02:54.7]} 16... Rf8 {[%clk
0:02:21.7]} 17. Ng5+ {[%clk 0:02:32.2]} 17... Kh8 {[%clk 0:02:21.7]} 18. Be3
{[%clk 0:02:16.6]} 18... Ncxe4 {[%clk 0:02:19.6]} 19. Ne6 {[%clk 0:02:13.1]}
19... Rfe8 {[%clk 0:02:13.2]} 20. Rad1 {[%clk 0:02:11.9]} 20... Nd5 {[%clk
0:01:34.8]} 21. Nxg7 {[%clk 0:02:09.3]} 21... Kxg7 {[%clk 0:01:33]} 22. Bxd5
{[%clk 0:02:09.3]} 22... cxd5 {[%clk 0:01:34.8]} 23. Rxd5 {[%clk 0:02:11.2]}
23... Nf6 {[%clk 0:01:36.1]} 24. Rb5 {[%clk 0:02:08.9]} 1-0

[Event "*** Titled Tuesday 3|2 Blitz"]
[Site "Chess.com"]
[Date "2017.03.07"]
[Round "5"]
[White "Dlugy"]
[Black "Robin-Side"]
[Result "1-0"]
[WhiteElo "2665"]
[BlackElo "2461"]
[TimeControl "180+2"]
[EndTime "14:06:25 PST"]
[Termination "Dlugy won on time"]

1. d4 {[%clk 0:03:02]} 1... g6 {[%clk 0:03:01]} 2. e4 {[%clk 0:03:01.4]} 2...
Bg7 {[%clk 0:03:02.4]} 3. Nf3 {[%clk 0:03:02.6]} 3... e6 {[%clk 0:03:03.9]} 4.
Bg5 {[%clk 0:03:02.7]} 4... Ne7 {[%clk 0:03:04.5]} 5. Qd2 {[%clk 0:03:03.8]}
5... h6 {[%clk 0:03:05.8]} 6. Be3 {[%clk 0:03:02.5]} 6... d5 {[%clk 0:03:06.7]}
7. Nc3 {[%clk 0:03:02.1]} 7... dxe4 {[%clk 0:02:46.4]} 8. Nxe4 {[%clk
0:03:02.4]} 8... Nd5 {[%clk 0:02:47.7]} 9. O-O-O {[%clk 0:03:00]} 9... Nc6
{[%clk 0:02:43.3]} 10. Kb1 {[%clk 0:02:36]} 10... Bd7 {[%clk 0:02:27.4]} 11. Nc5
{[%clk 0:02:36]} 11... b6 {[%clk 0:02:12.4]} 12. Nxd7 {[%clk 0:02:36.6]} 12...
Qxd7 {[%clk 0:02:14.3]} 13. Bb5 {[%clk 0:02:12.6]} 13... a6 {[%clk 0:02:06.1]}
14. Ba4 {[%clk 0:02:14.1]} 14... b5 {[%clk 0:02:03]} 15. Bb3 {[%clk 0:02:15.2]}
15... Nxe3 {[%clk 0:01:57.4]} 16. Qxe3 {[%clk 0:02:12.6]} 16... Na5 {[%clk
0:00:45.2]} 17. Ne5 {[%clk 0:02:12.7]} 17... Qe7 {[%clk 0:00:33.3]} 18. Qc3
{[%clk 0:02:06.6]} 18... b4 {[%clk 0:00:16.3]} 19. Ba4+ {[%clk 0:02:07.2]} 19...
Kf8 {[%clk 0:00:16.5]} 20. Nxg6+ {[%clk 0:01:59.7]} 20... fxg6 {[%clk
0:00:16.6]} 21. Qf3+ {[%clk 0:02:01]} 21... Kg8 {[%clk 0:00:11.3]} 22. Qxa8+
{[%clk 0:02:02.2]} 22... Kh7 {[%clk 0:00:12.5]} 23. Qxa6 {[%clk 0:02:03.3]} 1-0

[Event "*** Titled Tuesday 3|2 Blitz"]
[Site "Chess.com"]
[Date "2017.03.07"]
[Round "5"]
[White "GMCanty"]
[Black "Jadeit90"]
[Result "1-0"]
[WhiteElo "2333"]
[BlackElo "2150"]
[TimeControl "180+2"]
[EndTime "14:06:39 PST"]
[Termination "GMCanty won by resignation"]

1. e4 {[%clk 0:03:02]} 1... c5 {[%clk 0:02:54.7]} 2. c3 {[%clk 0:03:02.3]} 2...
g5 {[%clk 0:02:50.8]} 3. d4 {[%clk 0:03:02.8]} 3... Bg7 {[%clk 0:02:50.9]} 4.
Bxg5 {[%clk 0:02:48.8]} 4... cxd4 {[%clk 0:02:43.1]} 5. cxd4 {[%clk 0:02:42.5]}
5... Qb6 {[%clk 0:02:42.9]} 6. Nf3 {[%clk 0:02:43.6]} 6... Qxb2 {[%clk
0:02:41.4]} 7. Nbd2 {[%clk 0:02:45.2]} 7... Nc6 {[%clk 0:02:39.7]} 8. Rb1 {[%clk
0:02:41.7]} 8... Qa3 {[%clk 0:02:20.2]} 9. Nc4 {[%clk 0:02:30.5]} 9... Qa6
{[%clk 0:00:40.7]} 10. Nd6+ {[%clk 0:02:28.3]} 10... exd6 {[%clk 0:00:42.1]} 11.
Bxa6 {[%clk 0:02:30.2]} 11... bxa6 {[%clk 0:00:44]} 12. O-O {[%clk 0:02:28.6]}
12... Nf6 {[%clk 0:00:44.9]} 13. e5 {[%clk 0:02:28.8]} 13... dxe5 {[%clk
0:00:42.2]} 14. dxe5 {[%clk 0:02:30.7]} 14... Ne4 {[%clk 0:00:39.1]} 15. Qd5
{[%clk 0:02:21.1]} 15... Nc3 {[%clk 0:00:40.1]} 16. Qd6 {[%clk 0:02:08.9]} 16...
Nxb1 {[%clk 0:00:32.9]} 17. Nd4 {[%clk 0:01:53.5]} 17... Bf8 {[%clk 0:00:31.7]}
18. Qf6 {[%clk 0:01:53.6]} 18... Ne7 {[%clk 0:00:12.1]} 19. Qxh8 {[%clk
0:01:48.8]} 19... Nc3 {[%clk 0:00:11.4]} 20. Bxe7 {[%clk 0:01:44.4]} 20... Kxe7
{[%clk 0:00:13.3]} 21. Nf5+ {[%clk 0:01:45.8]} 21... Ke6 {[%clk 0:00:11.3]} 22.
Qf6+ {[%clk 0:01:46.5]} 22... Kd5 {[%clk 0:00:12.7]} 23. Qxf7+ {[%clk
0:01:47.6]} 23... Kxe5 {[%clk 0:00:12.9]} 24. Qxf8 {[%clk 0:01:48.7]} 24... Bb7
{[%clk 0:00:12.9]} 25. Qc5+ {[%clk 0:01:48.8]} 25... Nd5 {[%clk 0:00:13.3]} 26.
Ne3 {[%clk 0:01:49.6]} 1-0

[Event "*** Titled Tuesday 3|2 Blitz"]
[Site "Chess.com"]
[Date "2017.03.07"]
[Round "5"]
[White "Grootneus"]
[Black "FrankieJay"]
[Result "1-0"]
[WhiteElo "2156"]
[BlackElo "2270"]
[TimeControl "180+2"]
[EndTime "14:06:55 PST"]
[Termination "Grootneus won by resignation"]

1. e4 {[%clk 0:03:02]} 1... c5 {[%clk 0:02:59.1]} 2. b4 {[%clk 0:02:55.6]} 2...
cxb4 {[%clk 0:02:50.3]} 3. a3 {[%clk 0:02:56.8]} 3... d5 {[%clk 0:02:42.8]} 4.
exd5 {[%clk 0:02:58.7]} 4... Qxd5 {[%clk 0:02:41.5]} 5. Nf3 {[%clk 0:02:59.9]}
5... e5 {[%clk 0:02:36]} 6. axb4 {[%clk 0:03:01.2]} 6... Bxb4 {[%clk 0:02:17.4]}
7. c3 {[%clk 0:02:35.5]} 7... Be7 {[%clk 0:02:17.8]} 8. Na3 {[%clk 0:02:32.7]}
8... Nc6 {[%clk 0:02:12.3]} 9. Nb5 {[%clk 0:02:26.4]} 9... Qd8 {[%clk 0:01:57]}
10. d4 {[%clk 0:02:27.1]} 10... exd4 {[%clk 0:01:40]} 11. Bf4 {[%clk 0:02:26.5]}
11... Be6 {[%clk 0:01:29.1]} 12. Nc7+ {[%clk 0:02:21.4]} 12... Kf8 {[%clk
0:01:30]} 13. Nxa8 {[%clk 0:02:22.3]} 13... Qxa8 {[%clk 0:01:29.4]} 14. cxd4
{[%clk 0:02:14.7]} 14... Nf6 {[%clk 0:01:21]} 15. Bb5 {[%clk 0:02:06.8]} 15...
Nd5 {[%clk 0:01:11.6]} 16. Bd2 {[%clk 0:02:01.8]} 16... Ncb4 {[%clk 0:00:57.3]}
17. O-O {[%clk 0:01:55.9]} 17... a6 {[%clk 0:00:58.6]} 18. Ne5 {[%clk
0:01:42.3]} 18... Qc8 {[%clk 0:00:51.7]} 19. Rc1 {[%clk 0:01:37]} 19... Qd8
{[%clk 0:00:48.9]} 20. Ba4 {[%clk 0:01:35.5]} 20... Bd6 {[%clk 0:00:39.6]} 21.
Bb3 {[%clk 0:01:33.1]} 21... Qh4 {[%clk 0:00:30.3]} 22. Bxb4 {[%clk 0:01:09.5]}
22... Nxb4 {[%clk 0:00:31.6]} 23. Bxe6 {[%clk 0:01:05.7]} 1-0

[Event "*** Titled Tuesday 3|2 Blitz"]
[Site "Chess.com"]
[Date "2017.03.07"]
[Round "5"]
[White "Ginger_GM"]
[Black "pedromartinez91"]
[Result "1-0"]
[WhiteElo "2496"]
[BlackElo "2344"]
[TimeControl "180+2"]
[EndTime "14:07:11 PST"]
[Termination "Ginger_GM won by resignation"]

1. d4 {[%clk 0:03:02]} 1... d5 {[%clk 0:03:00.5]} 2. c4 {[%clk 0:03:02.6]} 2...
e6 {[%clk 0:03:01.2]} 3. Nc3 {[%clk 0:03:01.7]} 3... Be7 {[%clk 0:03:02.1]} 4.
Nf3 {[%clk 0:03:02.3]} 4... Nf6 {[%clk 0:03:02.9]} 5. Bf4 {[%clk 0:03:02.7]}
5... O-O {[%clk 0:03:03.3]} 6. e3 {[%clk 0:03:03.5]} 6... Nbd7 {[%clk
0:03:00.1]} 7. Qc2 {[%clk 0:03:02.7]} 7... c5 {[%clk 0:02:54.9]} 8. O-O-O {[%clk
0:03:03.3]} 8... cxd4 {[%clk 0:02:53.8]} 9. exd4 {[%clk 0:03:03.1]} 9... dxc4
{[%clk 0:02:52.7]} 10. Bxc4 {[%clk 0:03:03.3]} 10... Nb6 {[%clk 0:02:53.5]} 11.
Bb3 {[%clk 0:03:04.3]} 11... Nbd5 {[%clk 0:02:54.3]} 12. Be5 {[%clk 0:03:05.4]}
12... b5 {[%clk 0:02:53.9]} 13. Ng5 {[%clk 0:02:58]} 13... g6 {[%clk 0:02:26.6]}
14. h4 {[%clk 0:02:57.2]} 14... Nxc3 {[%clk 0:02:02.6]} 15. bxc3 {[%clk
0:02:56.8]} 15... Nd5 {[%clk 0:02:03.5]} 16. Nxh7 {[%clk 0:02:49.1]} 16... Kxh7
{[%clk 0:01:35.5]} 17. h5 {[%clk 0:02:49.3]} 17... f5 {[%clk 0:01:24.9]} 18.
hxg6+ {[%clk 0:02:48.6]} 18... Kxg6 {[%clk 0:01:25.3]} 19. Qe2 {[%clk
0:02:47.6]} 19... Bg5+ {[%clk 0:01:19.5]} 20. Kb2 {[%clk 0:02:41.1]} 20... Nf6
{[%clk 0:01:04.3]} 21. f4 {[%clk 0:02:40.2]} 21... Bh6 {[%clk 0:00:55.9]} 22.
Qf3 {[%clk 0:02:18.7]} 22... Rh8 {[%clk 0:00:44.8]} 23. Qxa8 {[%clk 0:02:12.6]}
23... Bg7 {[%clk 0:00:37.8]} 24. Rxh8 {[%clk 0:02:04.3]} 24... Qxh8 {[%clk
0:00:39.3]} 25. Qf3 {[%clk 0:02:04]} 25... Bd7 {[%clk 0:00:34.8]} 26. d5 {[%clk
0:02:01.6]} 26... exd5 {[%clk 0:00:24.5]} 27. Bxd5 {[%clk 0:02:00.5]} 27... Ng4
{[%clk 0:00:09.4]} 28. Bf7+ {[%clk 0:01:59.2]} 28... Kxf7 {[%clk 0:00:03.5]} 1-0

[Event "*** Titled Tuesday 3|2 Blitz"]
[Site "Chess.com"]
[Date "2017.03.07"]
[Round "5"]
[White "Schemato"]
[Black "EmeseBalogh"]
[Result "1-0"]
[WhiteElo "2276"]
[BlackElo "1985"]
[TimeControl "180+2"]
[EndTime "14:07:27 PST"]
[Termination "Schemato won by resignation"]

1. c4 {[%clk 0:03:02]} 1... e5 {[%clk 0:02:55.3]} 2. g3 {[%clk 0:03:02.4]} 2...
Nc6 {[%clk 0:02:56.4]} 3. Nc3 {[%clk 0:03:02.7]} 3... d6 {[%clk 0:02:57]} 4. Bg2
{[%clk 0:03:03.4]} 4... g6 {[%clk 0:02:53.6]} 5. e4 {[%clk 0:03:04]} 5... Bg7
{[%clk 0:02:54.9]} 6. Nge2 {[%clk 0:03:05.6]} 6... Nge7 {[%clk 0:02:56.5]} 7. d3
{[%clk 0:03:06.9]} 7... O-O {[%clk 0:02:58]} 8. O-O {[%clk 0:03:07.8]} 8... Be6
{[%clk 0:02:59.7]} 9. Nd5 {[%clk 0:03:08]} 9... Qd7 {[%clk 0:02:59.2]} 10. Bg5
{[%clk 0:03:06.6]} 10... f6 {[%clk 0:02:59.4]} 11. Be3 {[%clk 0:03:07]} 11...
Rf7 {[%clk 0:02:58.6]} 12. Qd2 {[%clk 0:03:08]} 12... f5 {[%clk 0:02:59.3]} 13.
f3 {[%clk 0:03:07.9]} 13... Raf8 {[%clk 0:02:56.3]} 14. Rad1 {[%clk 0:03:07]}
14... Bxd5 {[%clk 0:02:55.1]} 15. cxd5 {[%clk 0:03:07.2]} 15... Nd8 {[%clk
0:02:56.3]} 16. Rc1 {[%clk 0:03:05.8]} 16... c6 {[%clk 0:02:56.4]} 17. dxc6
{[%clk 0:03:06.4]} 17... bxc6 {[%clk 0:02:57.4]} 18. f4 {[%clk 0:03:04]} 18...
c5 {[%clk 0:02:57.9]} 19. fxe5 {[%clk 0:03:00]} 19... Bxe5 {[%clk 0:02:59.8]}
20. d4 {[%clk 0:02:54.4]} 20... cxd4 {[%clk 0:02:57.1]} 21. Nxd4 {[%clk
0:02:52.8]} 21... fxe4 {[%clk 0:02:44]} 22. Rxf7 {[%clk 0:02:50.4]} 22... Rxf7
{[%clk 0:02:39.5]} 23. Bxe4 {[%clk 0:02:51.2]} 23... Ne6 {[%clk 0:02:37.8]} 24.
Nf3 {[%clk 0:02:30]} 24... Bg7 {[%clk 0:02:35.6]} 25. Ng5 {[%clk 0:02:28.2]}
25... Nxg5 {[%clk 0:02:35.3]} 26. Bxg5 {[%clk 0:02:30.1]} 26... Qg4 {[%clk
0:02:28.5]} 27. Bg2 {[%clk 0:02:11.7]} 27... Bd4+ {[%clk 0:02:19.3]} 28. Be3
{[%clk 0:02:03.9]} 28... Bxe3+ {[%clk 0:02:03.8]} 29. Qxe3 {[%clk 0:02:05.8]}
29... Nf5 {[%clk 0:01:53.7]} 30. Rc8+ {[%clk 0:01:56.2]} 30... Kg7 {[%clk
0:01:54.5]} 31. Qc3+ {[%clk 0:01:55.9]} 31... Nd4 {[%clk 0:01:48.7]} 32. h3
{[%clk 0:01:30]} 32... Qd1+ {[%clk 0:01:26.1]} 33. Kh2 {[%clk 0:01:31]} 33...
Rf2 {[%clk 0:00:54.2]} 34. Rc7+ {[%clk 0:01:22.2]} 34... Kh6 {[%clk 0:00:54.5]}
35. Qe3+ {[%clk 0:01:22.1]} 1-0

[Event "*** Titled Tuesday 3|2 Blitz"]
[Site "Chess.com"]
[Date "2017.03.07"]
[Round "5"]
[White "DeviatkinAndrey"]
[Black "Chesstrainer1"]
[Result "1-0"]
[WhiteElo "2516"]
[BlackElo "2328"]
[TimeControl "180+2"]
[EndTime "14:07:34 PST"]
[Termination "DeviatkinAndrey won by resignation"]

1. d4 {[%clk 0:03:01.9]} 1... Nf6 {[%clk 0:03:00.4]} 2. Bg5 {[%clk 0:03:01.4]}
2... e6 {[%clk 0:02:59.2]} 3. e3 {[%clk 0:03:01.9]} 3... c5 {[%clk 0:02:57]} 4.
Nd2 {[%clk 0:03:03.2]} 4... cxd4 {[%clk 0:02:52.6]} 5. exd4 {[%clk 0:03:04]}
5... Nc6 {[%clk 0:02:53.9]} 6. c3 {[%clk 0:03:04.8]} 6... Be7 {[%clk 0:02:51.7]}
7. Ngf3 {[%clk 0:03:05.1]} 7... h6 {[%clk 0:02:51.3]} 8. Bf4 {[%clk 0:03:05]}
8... b6 {[%clk 0:02:50.8]} 9. Bd3 {[%clk 0:03:05.3]} 9... Bb7 {[%clk 0:02:47.6]}
10. h3 {[%clk 0:03:06.7]} 10... Nd5 {[%clk 0:02:32.2]} 11. Bh2 {[%clk
0:03:05.6]} 11... f5 {[%clk 0:02:32.2]} 12. Qe2 {[%clk 0:03:05.3]} 12... O-O
{[%clk 0:02:31.6]} 13. O-O {[%clk 0:02:59.6]} 13... Bf6 {[%clk 0:02:21.9]} 14.
a3 {[%clk 0:02:46.9]} 14... g5 {[%clk 0:01:58.1]} 15. Rad1 {[%clk 0:02:40.1]}
15... Qe7 {[%clk 0:01:51.8]} 16. Rfe1 {[%clk 0:02:34.8]} 16... Qg7 {[%clk
0:01:50.2]} 17. Nc4 {[%clk 0:02:31.9]} 17... Rad8 {[%clk 0:01:38.6]} 18. Nd6
{[%clk 0:02:25.2]} 18... Ba8 {[%clk 0:01:39.5]} 19. Ne5 {[%clk 0:02:07.1]} 19...
Kh8 {[%clk 0:01:21.2]} 20. Qh5 {[%clk 0:01:53]} 20... Bxe5 {[%clk 0:01:02.8]}
21. dxe5 {[%clk 0:01:49.8]} 21... Nf4 {[%clk 0:00:59.5]} 22. Bxf4 {[%clk
0:01:20.9]} 22... gxf4 {[%clk 0:01:00.5]} 23. f3 {[%clk 0:01:22.3]} 23... Rg8
{[%clk 0:00:50.7]} 24. Nf7+ {[%clk 0:01:21.9]} 24... Kh7 {[%clk 0:00:51.2]} 25.
Bxf5+ {[%clk 0:01:23.5]} 25... exf5 {[%clk 0:00:48.4]} 26. Qxf5+ {[%clk
0:01:24.4]} 26... Qg6 {[%clk 0:00:49.9]} 27. Qxg6+ {[%clk 0:01:24.9]} 27... Kxg6
{[%clk 0:00:50]} 28. Nxd8 {[%clk 0:01:24]} 28... Rxd8 {[%clk 0:00:51.6]} 29. e6
{[%clk 0:01:21.3]} 29... dxe6 {[%clk 0:00:20.5]} 30. Rxe6+ {[%clk 0:01:20.4]}
30... Kg5 {[%clk 0:00:20.9]} 31. Rxd8 {[%clk 0:01:21.3]} 31... Nxd8 {[%clk
0:00:22.4]} 32. Re8 {[%clk 0:01:22.2]} 1-0

[Event "*** Titled Tuesday 3|2 Blitz"]
[Site "Chess.com"]
[Date "2017.03.07"]
[Round "5"]
[White "morphy1984"]
[Black "MyleneFarmer"]
[Result "1-0"]
[WhiteElo "2491"]
[BlackElo "2367"]
[TimeControl "180+2"]
[EndTime "14:07:40 PST"]
[Termination "morphy1984 won by checkmate"]

1. e4 {[%clk 0:03:02]} 1... c5 {[%clk 0:03:00]} 2. Nf3 {[%clk 0:03:02.2]} 2...
d6 {[%clk 0:03:01.1]} 3. d4 {[%clk 0:03:02.5]} 3... cxd4 {[%clk 0:03:03]} 4.
Nxd4 {[%clk 0:03:03.2]} 4... Nf6 {[%clk 0:02:52]} 5. Nc3 {[%clk 0:03:03.2]} 5...
g6 {[%clk 0:02:50.6]} 6. Be3 {[%clk 0:03:02.9]} 6... Bg7 {[%clk 0:02:52.1]} 7.
f3 {[%clk 0:03:02.8]} 7... O-O {[%clk 0:02:53.7]} 8. Qd2 {[%clk 0:03:03]} 8...
Nc6 {[%clk 0:02:53.9]} 9. Bc4 {[%clk 0:03:02.1]} 9... Bd7 {[%clk 0:02:54.8]} 10.
O-O-O {[%clk 0:03:02]} 10... Rc8 {[%clk 0:02:55.7]} 11. Bb3 {[%clk 0:03:02.6]}
11... Nxd4 {[%clk 0:02:55.6]} 12. Bxd4 {[%clk 0:03:02.9]} 12... a5 {[%clk
0:02:55.8]} 13. a3 {[%clk 0:02:43.4]} 13... b5 {[%clk 0:02:50.8]} 14. Nd5 {[%clk
0:02:43.7]} 14... Nxd5 {[%clk 0:02:46.8]} 15. Bxg7 {[%clk 0:02:43]} 15... Kxg7
{[%clk 0:02:47.8]} 16. exd5 {[%clk 0:02:43.6]} 16... Kg8 {[%clk 0:02:43.5]} 17.
h4 {[%clk 0:02:21.5]} 17... Bf5 {[%clk 0:02:31.1]} 18. g4 {[%clk 0:02:03.9]}
18... a4 {[%clk 0:02:24.9]} 19. Bxa4 {[%clk 0:01:50.7]} 19... Bxg4 {[%clk
0:02:14.1]} 20. fxg4 {[%clk 0:01:49.1]} 20... bxa4 {[%clk 0:02:15.1]} 21. h5
{[%clk 0:01:46.5]} 21... Qb6 {[%clk 0:02:14.2]} 22. Rde1 {[%clk 0:00:56]} 22...
Rc4 {[%clk 0:02:01.9]} 23. hxg6 {[%clk 0:00:50.8]} 23... fxg6 {[%clk 0:02:01.5]}
24. Rxe7 {[%clk 0:00:43.8]} 24... Rf2 {[%clk 0:01:38.3]} 25. Re8+ {[%clk
0:00:41.8]} 25... Kf7 {[%clk 0:01:38.2]} 26. Re2 {[%clk 0:00:40.6]} 26... Rxe2
{[%clk 0:01:26.8]} 27. Qxe2 {[%clk 0:00:40.2]} 27... Qc5 {[%clk 0:01:11.8]} 28.
Qe6+ {[%clk 0:00:31.4]} 28... Kg7 {[%clk 0:01:08.1]} 29. Qe7+ {[%clk 0:00:29.1]}
29... Kg8 {[%clk 0:01:08.2]} 30. Qxh7+ {[%clk 0:00:29.6]} 30... Kf8 {[%clk
0:01:08.9]} 31. Rf1+ {[%clk 0:00:26.5]} 31... Ke8 {[%clk 0:01:09.9]} 32. Qg8+
{[%clk 0:00:24.5]} 32... Ke7 {[%clk 0:01:09.1]} 33. Rf7# {[%clk 0:00:24.7]} 1-0

[Event "*** Titled Tuesday 3|2 Blitz"]
[Site "Chess.com"]
[Date "2017.03.07"]
[Round "5"]
[White "Zhani-Z"]
[Black "chito89"]
[Result "0-1"]
[WhiteElo "2326"]
[BlackElo "2532"]
[TimeControl "180+2"]
[EndTime "14:07:45 PST"]
[Termination "chito89 won on time"]

1. e4 {[%clk 0:03:02]} 1... d6 {[%clk 0:02:53.9]} 2. d4 {[%clk 0:03:02.3]} 2...
Nf6 {[%clk 0:02:52.5]} 3. Nc3 {[%clk 0:03:03.8]} 3... g6 {[%clk 0:02:52.5]} 4.
Bc4 {[%clk 0:03:02.3]} 4... Bg7 {[%clk 0:02:49.2]} 5. Qe2 {[%clk 0:03:03.7]}
5... e5 {[%clk 0:02:48]} 6. dxe5 {[%clk 0:03:00.5]} 6... dxe5 {[%clk 0:02:45.4]}
7. Nf3 {[%clk 0:03:02]} 7... Qe7 {[%clk 0:02:42.9]} 8. Bg5 {[%clk 0:02:59]} 8...
c6 {[%clk 0:02:40.9]} 9. a4 {[%clk 0:02:41.6]} 9... O-O {[%clk 0:02:37.9]} 10.
a5 {[%clk 0:02:39]} 10... Nbd7 {[%clk 0:02:27.6]} 11. O-O {[%clk 0:02:38.2]}
11... Nc5 {[%clk 0:02:26.9]} 12. Rfd1 {[%clk 0:02:16.2]} 12... h6 {[%clk
0:02:27.6]} 13. Bh4 {[%clk 0:02:14.2]} 13... Ne6 {[%clk 0:02:19.9]} 14. Bxe6
{[%clk 0:01:56.5]} 14... Qxe6 {[%clk 0:02:05.5]} 15. Nd2 {[%clk 0:01:57.1]}
15... Nh5 {[%clk 0:01:51.2]} 16. Bg3 {[%clk 0:01:46]} 16... Rd8 {[%clk
0:01:34.7]} 17. Nc4 {[%clk 0:01:43.6]} 17... Rd4 {[%clk 0:01:32.8]} 18. b3
{[%clk 0:01:36.6]} 18... Bd7 {[%clk 0:01:27.4]} 19. Na4 {[%clk 0:01:35.8]} 19...
Qe7 {[%clk 0:01:19.8]} 20. c3 {[%clk 0:01:31]} 20... Nxg3 {[%clk 0:01:14.4]} 21.
hxg3 {[%clk 0:01:31]} 21... Rxd1+ {[%clk 0:01:16]} 22. Rxd1 {[%clk 0:01:31.6]}
22... Be6 {[%clk 0:01:16.2]} 23. b4 {[%clk 0:01:15.4]} 23... Rd8 {[%clk
0:01:11]} 24. Rxd8+ {[%clk 0:01:12.8]} 24... Qxd8 {[%clk 0:01:12.4]} 25. Nc5
{[%clk 0:01:12.3]} 25... Bc8 {[%clk 0:01:13.7]} 26. Qd3 {[%clk 0:01:11.2]} 26...
Qxd3 {[%clk 0:01:11.5]} 27. Nxd3 {[%clk 0:01:11.9]} 27... f5 {[%clk 0:01:09.4]}
0-1

[Event "*** Titled Tuesday 3|2 Blitz"]
[Site "Chess.com"]
[Date "2017.03.07"]
[Round "5"]
[White "workhard91"]
[Black "silverback96"]
[Result "1-0"]
[WhiteElo "2234"]
[BlackElo "2069"]
[TimeControl "180+2"]
[EndTime "14:07:50 PST"]
[Termination "workhard91 won by resignation"]

1. e4 {[%clk 0:03:02]} 1... e6 {[%clk 0:03:01]} 2. d4 {[%clk 0:03:02.7]} 2... d5
{[%clk 0:03:02.6]} 3. Nc3 {[%clk 0:03:04]} 3... Bb4 {[%clk 0:03:03.9]} 4. e5
{[%clk 0:02:52.9]} 4... c5 {[%clk 0:03:04.7]} 5. Bd2 {[%clk 0:02:54.3]} 5...
cxd4 {[%clk 0:03:02.1]} 6. Nb5 {[%clk 0:02:55.3]} 6... Bxd2+ {[%clk 0:02:50.1]}
7. Qxd2 {[%clk 0:02:57.2]} 7... Nc6 {[%clk 0:02:44.5]} 8. Nf3 {[%clk 0:02:37.9]}
8... Nge7 {[%clk 0:02:39.9]} 9. Nbxd4 {[%clk 0:02:37.4]} 9... Qb6 {[%clk
0:02:36.3]} 10. O-O-O {[%clk 0:02:08.1]} 10... Bd7 {[%clk 0:02:29.2]} 11. Kb1
{[%clk 0:01:59.2]} 11... Ng6 {[%clk 0:02:28.5]} 12. h4 {[%clk 0:01:56.8]} 12...
Ngxe5 {[%clk 0:02:27.6]} 13. Nxe5 {[%clk 0:01:53.6]} 13... Nxe5 {[%clk
0:02:29.5]} 14. Qg5 {[%clk 0:01:44.6]} 14... Nc4 {[%clk 0:02:07.4]} 15. Bxc4
{[%clk 0:01:41.9]} 15... dxc4 {[%clk 0:02:09.3]} 16. Rhe1 {[%clk 0:01:03.5]}
16... h6 {[%clk 0:01:54.6]} 17. Qxg7 {[%clk 0:00:58.1]} 17... O-O-O {[%clk
0:01:55.4]} 18. Qf6 {[%clk 0:00:45.4]} 18... Ba4 {[%clk 0:01:41.9]} 19. b3
{[%clk 0:00:19.6]} 19... Rd5 {[%clk 0:01:33.4]} 20. Nf3 {[%clk 0:00:14.1]} 20...
Rxd1+ {[%clk 0:01:29.4]} 21. Rxd1 {[%clk 0:00:15]} 21... Rd8 {[%clk 0:01:31.3]}
22. Qxd8+ {[%clk 0:00:13.9]} 22... Qxd8 {[%clk 0:01:32.3]} 23. Rxd8+ {[%clk
0:00:15.8]} 23... Kxd8 {[%clk 0:01:34.2]} 24. bxa4 {[%clk 0:00:17.7]} 24... f6
{[%clk 0:01:36.1]} 25. Kb2 {[%clk 0:00:18.9]} 25... Kd7 {[%clk 0:01:37.7]} 26.
Kc3 {[%clk 0:00:20.5]} 26... Kc6 {[%clk 0:01:38.3]} 27. Kxc4 {[%clk 0:00:21.9]}
27... b6 {[%clk 0:01:40.2]} 28. Nd4+ {[%clk 0:00:23.2]} 28... Kd6 {[%clk
0:01:41]} 29. Nb5+ {[%clk 0:00:24.5]} 29... Kc6 {[%clk 0:01:41]} 30. Nxa7+
{[%clk 0:00:25.7]} 30... Kb7 {[%clk 0:01:42.9]} 31. Nb5 {[%clk 0:00:27.6]} 31...
Kc6 {[%clk 0:01:44.8]} 32. Kd4 {[%clk 0:00:28]} 32... Kd7 {[%clk 0:01:43.3]} 33.
c3 {[%clk 0:00:27.8]} 33... Kc6 {[%clk 0:01:44.9]} 34. f4 {[%clk 0:00:27.6]}
34... Kd7 {[%clk 0:01:46.2]} 35. h5 {[%clk 0:00:28.8]} 35... Kc6 {[%clk
0:01:44.5]} 36. g4 {[%clk 0:00:30]} 36... Kd7 {[%clk 0:01:45.1]} 37. c4 {[%clk
0:00:29.4]} 37... Kc6 {[%clk 0:01:45.8]} 38. a3 {[%clk 0:00:30.6]} 38... Kd7
{[%clk 0:01:47]} 39. c5 {[%clk 0:00:32.1]} 39... Kc6 {[%clk 0:01:46.3]} 40. cxb6
{[%clk 0:00:32.7]} 40... Kxb6 {[%clk 0:01:48.2]} 41. g5 {[%clk 0:00:32.1]} 41...
e5+ {[%clk 0:01:49.1]} 42. Ke4 {[%clk 0:00:31.1]} 42... fxg5 {[%clk 0:01:51]}
43. fxg5 {[%clk 0:00:32.3]} 1-0